[Event "36th Indian-ch U13 Girls 2023"]
[Site "Secunderabad"]
[Date "2023.12.08"]
[Round "9.6"]
[White "Saparya Ghosh"]
[Black "Shivamshika G"]
[Result "1-0"]
[ECO "D23"]
[WhiteElo "1662"]
[BlackElo "1424"]
[Annotator "NA COMBH"]
[PlyCount "65"]
[EventDate "2023.12.04"]
[EventType "swiss"]
[EventCountry "IND"]
[SourceTitle "playchess.com"]
[Source "ChessBase"]
[SourceQuality "1"]
[TimeControl "5400+30"]

1. d4 {[%emt 0:00:30]} d5 {[%emt 0:01:56]} 2. c4 {[%emt 0:00:09]} c6 {[%emt 0:00:05]} 3. Nf3 {[%emt 0:00:13]} Nf6 {[%emt 0:00:18]} 4. Qb3 {[%emt 0:00:07]} dxc4 {[%emt 0:01:34]} 5. Qxc4 {[%emt 0:00:05]} Bg4 {[%emt 0:01:21]} 6. Nbd2 {[%emt 0:00:10]} Nbd7 {[%emt 0:02:12]} 7. g3 {[%emt 0:00:11]} g6 {[%emt 0:03:18]} 8. Ng5 {[%emt 0:07:51]} Nd5 {[%emt 0:04:40]} 9. h3 {[%emt 0:11:17]} N7b6 {[%emt 0:01:23]} 10. Qb3 {[%emt 0:00:34]} Bd7 {[%emt 0:00:41]} 11. e4 {[%emt 0:00:33]} h6 {[%emt 0:00:27]} 12. Nxf7 {[%emt 0:02:07]} Kxf7 {[%emt 0:00:44]} 13. exd5 {[%emt 0:00:08]} Nxd5 {[%emt 0:01:28]} 14. Bg2 {[%emt 0:12:01]} Bg7 {[%emt 0:07:05]} 15. Qxb7 {[%emt 0:07:27]} Bxd4 {[%emt 0:07:50]} 16. O-O {[%emt 0:01:30]} Rb8 {[%emt 0:07:39]} 17. Qa6 {[%emt 0:01:44]} Nb4 {[%emt 0:12:27]} 18. Qe2 {[%emt 0:03:36]} Bf5 {[%emt 0:08:40]} 19. Ne4 {[%emt 0:01:23]} Nd3 {[%emt 0:03:11]} 20. Be3 {[%emt 0:13:39]} Nxb2 {[%emt 0:07:19]} 21. Rab1 {[%emt 0:06:40]} Be6 {[%emt 0:09:17]} 22. Rfd1 {[%emt 0:09:30]} Nxd1 {[%emt 0:02:51]} 23. Rxd1 {[%emt 0:00:11]} Qa5 {[%emt 0:06:02]} 24. Bxd4 {[%emt 0:03:18]} Rhd8 {[%emt 0:00:30]} 25. Nc5 {[%emt 0:00:55]} Qxa2 {[%emt 0:02:05]} 26. Qe5 {[%emt 0:00:21]} Rg8 {[%emt 0:02:26]} 27. Kh2 {[%emt 0:06:56]} Rbd8 {[%emt 0:05:15]} 28. Re1 {[%emt 0:00:14]} Rd6 {[%emt 0:00:20]} 29. Nb7 {[%emt 0:05:24]} Rd7 {[%emt 0:01:14]} 30. Bxc6 {[%emt 0:00:06]} Rxd4 {[%emt 0:00:32]} 31. Qxd4 {[%emt 0:00:05]} Rc8 {[%emt 0:00:08]} 32. Rxe6 {[%emt 0:00:32]} Qxe6 {[%emt 0:01:01]} 33. Bd5 {[%emt 0:00:05]} 1-0

[Event "36th Indian-ch U13 Girls 2023"]
[Site "Secunderabad"]
[Date "2023.12.08"]
[Round "9.7"]
[White "Aadya Gupta"]
[Black "Pratyasha Jena"]
[Result "1-0"]
[ECO "D37"]
[WhiteElo "1460"]
[BlackElo "1603"]
[Annotator "NA RC"]
[PlyCount "59"]
[EventDate "2023.12.04"]
[EventType "swiss"]
[EventCountry "IND"]
[SourceTitle "playchess.com"]
[Source "ChessBase"]
[SourceQuality "1"]
[TimeControl "5400+30"]

1. d4 {[%emt 0:00:01]} d5 {[%emt 0:00:16]} 2. c4 {[%emt 1:31:29]} e6 {[%emt 0:00:14]} 3. Nf3 {[%emt 0:00:00]} Nf6 {[%emt 0:00:08]} 4. a3 {[%emt 0:00:00]} Be7 {[%emt 0:01:00]} 5. Bf4 {[%emt 0:00:00]} O-O {[%emt 0:00:47]} 6. Nc3 {[%emt 0:00:00]} c6 {[%emt 0:00:09]} 7. e3 {[%emt 0:00:00]} Nbd7 {[%emt 0:00:38]} 8. Bd3 {[%emt 0:00:00]} Nh5 {[%emt 0:01:04]} 9. Bg3 {[%emt 0:00:00]} g6 {[%emt 0:01:45]} 10. O-O {[%emt 0:00:00]} Nxg3 {[%emt 0:00:14]} 11. hxg3 {[%emt 0:00:00]} b6 {[%emt 0:02:14]} 12. Qe2 {[%emt 0:00:00]} Bb7 {[%emt 0:03:51]} 13. Rfd1 {[%emt 0:00:00]} Qc7 {[%emt 0:01:14]} 14. Rac1 {[%emt 0:00:00]} Qd8 {[%emt 0:02:30]} 15. g4 {[%emt 0:00:00]} Bf6 {[%emt 0:05:34]} 16. g3 {[%emt 0:00:00]} Qe7 {[%emt 0:02:00]} 17. e4 {[%emt 0:00:00]} Rac8 {[%emt 0:07:48]} 18. cxd5 {[%emt 0:00:00]} exd5 {[%emt 0:02:15]} 19. exd5 {[%emt 0:00:00]} cxd5 {[%emt 0:00:52]} 20. Qxe7 {[%emt 0:00:00]} Bxe7 {[%emt 0:00:10]} 21. g5 {[%emt 0:00:00]} a6 {[%emt 0:02:38]} 22. Re1 {[%emt 0:00:00]} Rfe8 {[%emt 0:03:41]} 23. Bf1 {[%emt 0:00:00]} b5 {[%emt 0:08:04]} 24. Bh3 {[%emt 0:00:00]} Rcd8 {[%emt 0:04:06]} 25. Nb1 {[%emt 0:00:00]} Kf8 {[%emt 0:05:28]} 26. Rc7 {[%emt 0:00:00]} Bc8 {[%emt 0:01:32]} 27. Rxc8 {[%emt 0:00:00]} Rxc8 {[%emt 0:00:25]} 28. Bxd7 {[%emt 0:00:00]} Bb4 {[%emt 0:00:53]} 29. Rxe8+ {[%emt 0:00:00]} Rxe8 {[%emt 0:00:06]} 30. Bxe8 {[%emt 0:00:00]} 1-0

[Event "36th Indian-ch U13 Girls 2023"]
[Site "Secunderabad"]
[Date "2023.12.08"]
[Round "9.8"]
[White "Sherali Pattnaik"]
[Black "Shanmathi Sree S"]
[Result "0-1"]
[ECO "B90"]
[WhiteElo "1575"]
[BlackElo "1420"]
[Annotator "NA COMBH"]
[PlyCount "98"]
[EventDate "2023.12.04"]
[EventType "swiss"]
[EventCountry "IND"]
[SourceTitle "playchess.com"]
[Source "ChessBase"]
[SourceQuality "1"]
[TimeControl "5400+30"]

1. e4 {[%emt 0:01:19]} c5 {[%emt 0:02:05]} 2. Nf3 {[%emt 0:00:04]} d6 {[%emt 0:01:00]} 3. d4 {[%emt 0:00:12]} cxd4 {[%emt 0:02:05]} 4. Nxd4 {[%emt 0:00:02]} Nf6 {[%emt 0:00:45]} 5. Nc3 {[%emt 0:00:04]} a6 {[%emt 0:00:12]} 6. Be3 {[%emt 0:00:06]} e5 {[%emt 0:00:24]} 7. Nb3 {[%emt 0:00:04]} Be6 {[%emt 0:00:21]} 8. f3 {[%emt 0:00:06]} Be7 {[%emt 0:00:11]} 9. Qd2 {[%emt 0:00:03]} Nbd7 {[%emt 0:00:29]} 10. O-O-O {[%emt 0:00:37]} b5 {[%emt 0:00:29]} 11. g4 {[%emt 0:10:13]} Rc8 {[%emt 0:02:36]} 12. Kb1 {[%emt 0:06:25]} Nb6 {[%emt 0:01:34]} 13. h4 {[%emt 0:20:35]} Qc7 {[%emt 0:09:11]} 14. Qf2 {[%emt 0:09:26]} Nc4 {[%emt 0:03:22]} 15. Bxc4 {[%emt 0:00:02]} bxc4 {[%emt 0:05:11]} 16. Nc1 {[%emt 0:01:35]} Rb8 {[%emt 0:01:18]} 17. g5 {[%emt 0:03:05]} Nh5 {[%emt 0:04:38]} 18. Nd5 {[%emt 0:01:34]} Bxd5 {[%emt 0:01:15]} 19. Rxd5 {[%emt 0:00:23]} O-O {[%emt 0:01:28]} 20. c3 {[%emt 0:04:07]} a5 {[%emt 0:02:01]} 21. Qc2 {[%emt 0:05:27]} Rfc8 {[%emt 0:01:48]} 22. Ne2 {[%emt 0:01:28]} g6 {[%emt 0:08:11]} 23. f4 {[%emt 0:04:45]} Rb7 {[%emt 0:13:18]} 24. f5 {[%emt 0:06:35]} Rcb8 {[%emt 0:00:35]} 25. Bc1 {[%emt 0:00:01]} Qb6 {[%emt 0:04:40]} 26. f6 {[%emt 0:02:05]} Bd8 {[%emt 0:01:23]} 27. Rhd1 {[%emt 0:04:15]} Bc7 {[%emt 0:00:53]} 28. Qa4 {[%emt 0:06:05]} Qa6 {[%emt 0:02:00]} 29. R1d2 {[%emt 0:00:11]} Rb5 {[%emt 0:11:59]} 30. Qd1 {[%emt 0:07:16]} Qb7 {[%emt 0:02:55]} 31. Qc2 {[%emt 0:04:54]} Kf8 {[%emt 0:01:51]} 32. Rxb5 {[%emt 0:00:45]} Qxb5 {[%emt 0:00:06]} 33. Rd5 {[%emt 0:00:01]} Qc6 {[%emt 0:00:42]} 34. Ng1 {[%emt 0:01:01]} a4 {[%emt 0:00:58]} 35. a3 {[%emt 0:00:13]} Rb3 {[%emt 0:01:15]} 36. Nf3 {[%emt 0:00:54]} Rb8 {[%emt 0:03:40]} 37. Nh2 {[%emt 0:01:42]} Bb6 {[%emt 0:02:06]} 38. Qd1 {[%emt 0:00:48]} Bc5 {[%emt 0:00:29]} 39. Ka2 {[%emt 0:00:51]} Qb5 {[%emt 0:06:52]} 40. Qc2 {[%emt 0:00:31]} Qb3+ {[%emt 0:02:46]} 41. Qxb3 {[%emt 0:00:01]} cxb3+ {[%emt 0:01:58]} 42. Ka1 {[%emt 0:00:27]} Ng3 {[%emt 0:00:00]} 43. Ng4 {[%emt 0:00:30]} Nxe4 {[%emt 0:00:04]} 44. Be3 {[%emt 0:00:31]} Bxa3 {[%emt 0:00:46]} 45. Ra5 {[%emt 0:00:01]} Bc5 {[%emt 0:00:30]} 46. Nxe5 {[%emt 0:00:46]} dxe5 {[%emt 0:00:30]} 47. Bxc5+ {[%emt 0:00:00]} Nxc5 {[%emt 0:00:10]} 48. Rxc5 {[%emt 0:00:01]} Rd8 {[%emt 0:00:33]} 49. Rxe5 {[%emt 0:00:47]} Rd1# {[%emt 0:00:04]} 0-1

[Event "36th Indian-ch U13 Girls 2023"]
[Site "Secunderabad"]
[Date "2023.12.08"]
[Round "9.9"]
[White "Vaishnavi S K"]
[Black "Yasaswi Krishna Bommi"]
[Result "1-0"]
[ECO "B07"]
[WhiteElo "1417"]
[BlackElo "1543"]
[Annotator "NA COMBH"]
[PlyCount "137"]
[EventDate "2023.12.04"]
[EventType "swiss"]
[EventCountry "IND"]
[SourceTitle "playchess.com"]
[Source "ChessBase"]
[SourceQuality "1"]
[TimeControl "5400+30"]

1. e4 {[%emt 0:00:31]} d6 {[%emt 0:00:09]} 2. d3 {[%emt 0:00:18]} Nf6 {[%emt 0:00:08]} 3. Nc3 {[%emt 0:00:04]} g6 {[%emt 0:00:06]} 4. Nf3 {[%emt 0:00:18]} Bg7 {[%emt 0:00:27]} 5. Be2 {[%emt 0:00:31]} O-O {[%emt 0:00:12]} 6. O-O {[%emt 0:00:06]} e5 {[%emt 0:00:14]} 7. Bg5 {[%emt 0:02:53]} h6 {[%emt 0:02:47]} 8. Bh4 {[%emt 0:00:35]} g5 {[%emt 0:02:31]} 9. Bg3 {[%emt 0:00:57]} Nh5 {[%emt 0:02:46]} 10. Nd2 {[%emt 0:04:06]} Nf4 {[%emt 0:02:37]} 11. Bf3 {[%emt 0:05:03]} Nc6 {[%emt 0:05:22]} 12. Bxf4 {[%emt 0:03:20]} exf4 {[%emt 0:01:52]} 13. g3 {[%emt 0:03:59]} Kh8 {[%emt 0:05:57]} 14. Kh1 {[%emt 0:01:03]} Rg8 {[%emt 0:02:35]} 15. Bg4 {[%emt 0:02:09]} Ne5 {[%emt 0:04:41]} 16. Bxc8 {[%emt 0:01:30]} Qxc8 {[%emt 0:01:54]} 17. Nf3 {[%emt 0:13:11]} Qh3 {[%emt 0:08:16]} 18. Ng1 {[%emt 0:15:41]} Qd7 {[%emt 0:06:25]} 19. gxf4 {[%emt 0:28:32]} gxf4 {[%emt 0:02:57]} 20. Nce2 {[%emt 0:02:17]} Ng6 {[%emt 0:10:10]} 21. Qd2 {[%emt 0:01:56]} Qg4 {[%emt 0:05:05]} 22. f3 {[%emt 0:04:04]} Qh4 {[%emt 0:03:07]} 23. Qe1 {[%emt 0:00:44]} Qh5 {[%emt 0:04:38]} 24. Rf2 {[%emt 0:01:23]} Bf6 {[%emt 0:02:52]} 25. Qf1 {[%emt 0:01:20]} Bh4 {[%emt 0:02:37]} 26. Qh3 {[%emt 0:00:54]} Qe5 {[%emt 0:04:34]} 27. d4 {[%emt 0:01:36]} Qe7 {[%emt 0:02:07]} 28. Rg2 {[%emt 0:00:21]} Rg7 {[%emt 0:01:13]} 29. Rg4 {[%emt 0:00:33]} Bg5 {[%emt 0:01:37]} 30. Qh5 {[%emt 0:01:03]} Rag8 {[%emt 0:01:47]} 31. Nh3 {[%emt 0:00:56]} Rh7 {[%emt 0:01:37]} 32. Nxg5 {[%emt 0:03:42]} hxg5 {[%emt 0:00:11]} 33. Qxg5 {[%emt 0:00:06]} f6 {[%emt 0:02:18]} 34. Qf5 {[%emt 0:00:42]} Rh6 {[%emt 0:03:44]} 35. Nxf4 {[%emt 0:00:49]} Nxf4 {[%emt 0:02:00]} 36. Rxg8+ {[%emt 0:00:31]} Kxg8 {[%emt 0:00:04]} 37. Qxf4 {[%emt 0:00:05]} Qh7 {[%emt 0:07:23]} 38. Rg1+ {[%emt 0:00:05]} Kf8 {[%emt 0:00:00]} 39. Rg2 {[%emt 0:00:24]} Ke7 {[%emt 0:00:00]} 40. Qg4 {[%emt 0:00:26]} Rh5 {[%emt 0:00:00]} 41. Qg7+ {[%emt 0:00:10]} Qxg7 {[%emt 0:00:00]} 42. Rxg7+ {[%emt 0:00:03]} Kd8 {[%emt 0:00:00]} 43. Kg2 {[%emt 0:00:40]} f5 {[%emt 0:00:00]} 44. Kg3 {[%emt 0:00:24]} fxe4 {[%emt 0:00:00]} 45. fxe4 {[%emt 0:00:03]} Ra5 {[%emt 0:00:00]} 46. a3 {[%emt 0:00:05]} Rb5 {[%emt 0:00:00]} 47. b3 {[%emt 0:00:22]} a5 {[%emt 0:00:00]} 48. h4 {[%emt 0:00:07]} a4 {[%emt 0:00:03]} 49. b4 {[%emt 0:00:32]} c5 {[%emt 0:00:22]} 50. Rg5 {[%emt 0:01:14]} Ke7 {[%emt 0:00:36]} 51. dxc5 {[%emt 0:00:17]} dxc5 {[%emt 0:00:17]} 52. Rxc5 {[%emt 0:00:16]} Rb6 {[%emt 0:00:11]} 53. h5 {[%emt 0:00:23]} Kf7 {[%emt 0:00:15]} 54. Kf4 {[%emt 0:00:15]} Kg7 {[%emt 0:00:31]} 55. Kg5 {[%emt 0:00:10]} Re6 {[%emt 0:00:18]} 56. e5 {[%emt 0:00:23]} Re7 {[%emt 0:00:13]} 57. h6+ {[%emt 0:00:18]} Kh7 {[%emt 0:00:03]} 58. Kf6 {[%emt 0:00:07]} Rd7 {[%emt 0:00:29]} 59. e6 {[%emt 0:00:14]} Rd2 {[%emt 0:01:10]} 60. e7 {[%emt 0:00:15]} Rf2+ {[%emt 0:00:06]} 61. Rf5 {[%emt 0:00:10]} Re2 {[%emt 0:00:05]} 62. Kf7 {[%emt 0:00:10]} b5 {[%emt 0:00:25]} 63. e8=Q {[%emt 0:06:38]} Rg2 {[%emt 0:01:08]} 64. Qe4 {[%emt 0:00:00]} Rg6 {[%emt 0:00:45]} 65. Rg5 {[%emt 0:00:00]} Kh8 {[%emt 0:00:09]} 66. Qe8+ {[%emt 0:00:00]} Kh7 {[%emt 0:00:18]} 67. Qe4 {[%emt 0:00:00]} Kh8 {[%emt 0:00:07]} 68. Kxg6 {[%emt 0:00:00]} Kg8 {[%emt 0:00:07]} 69. Qe8# {[%emt 0:00:00]} 1-0

[Event "36th Indian-ch U13 Girls 2023"]
[Site "Secunderabad"]
[Date "2023.12.08"]
[Round "9.10"]
[White "Goddeti Hima Tejaswini"]
[Black "Modipalli Deekshitha"]
[Result "1/2-1/2"]
[ECO "C95"]
[WhiteElo "1507"]
[BlackElo "1394"]
[Annotator "NA COMBH"]
[PlyCount "83"]
[EventDate "2023.12.04"]
[EventType "swiss"]
[EventCountry "IND"]
[SourceTitle "playchess.com"]
[Source "ChessBase"]
[SourceQuality "1"]
[TimeControl "5400+30"]

1. e4 {[%emt 0:00:24]} e5 {[%emt 0:00:07]} 2. Nf3 {[%emt 0:01:14]} Nc6 {[%emt 0:00:11]} 3. Bb5 {[%emt 0:00:40]} a6 {[%emt 0:00:09]} 4. Ba4 {[%emt 0:00:50]} Nf6 {[%emt 0:00:07]} 5. O-O {[%emt 0:01:25]} Be7 {[%emt 0:00:09]} 6. Re1 {[%emt 0:00:17]} b5 {[%emt 0:00:09]} 7. Bb3 {[%emt 0:00:18]} d6 {[%emt 0:00:03]} 8. c3 {[%emt 0:00:31]} O-O {[%emt 0:00:07]} 9. h3 {[%emt 0:00:52]} Nb8 {[%emt 0:00:11]} 10. d4 {[%emt 0:02:34]} Nbd7 {[%emt 0:00:09]} 11. Nbd2 {[%emt 0:01:43]} Bb7 {[%emt 0:00:11]} 12. Bc2 {[%emt 0:02:09]} Re8 {[%emt 0:00:14]} 13. Nf1 {[%emt 0:02:01]} Bf8 {[%emt 0:00:11]} 14. Ng3 {[%emt 0:01:56]} g6 {[%emt 0:00:10]} 15. b3 {[%emt 0:05:14]} Bg7 {[%emt 0:03:41]} 16. Rb1 {[%emt 0:04:04]} c5 {[%emt 0:04:17]} 17. d5 {[%emt 0:02:13]} Qc7 {[%emt 0:04:30]} 18. Be3 {[%emt 0:05:51]} Nb6 {[%emt 0:09:55]} 19. Qd2 {[%emt 0:11:09]} Nfd7 {[%emt 0:09:12]} 20. Bh6 {[%emt 0:03:00]} f6 {[%emt 0:02:09]} 21. h4 {[%emt 0:02:26]} Kf7 {[%emt 0:06:55]} 22. h5 {[%emt 0:02:27]} Rg8 {[%emt 0:00:46]} 23. Nh4 {[%emt 0:01:19]} Bxh6 {[%emt 0:11:14]} 24. Qxh6 {[%emt 0:00:20]} Nf8 {[%emt 0:00:31]} 25. hxg6+ {[%emt 0:04:08]} hxg6 {[%emt 0:00:11]} 26. Bd1 {[%emt 0:05:07]} Ke7 {[%emt 0:00:49]} 27. Bg4 {[%emt 0:03:34]} Bc8 {[%emt 0:05:54]} 28. Bxc8 {[%emt 0:02:56]} Rxc8 {[%emt 0:00:19]} 29. Qd2 {[%emt 0:03:29]} Kd8 {[%emt 0:01:51]} 30. Nf3 {[%emt 0:00:32]} c4 {[%emt 0:01:23]} 31. b4 {[%emt 0:03:18]} Qh7 {[%emt 0:02:16]} 32. Kf1 {[%emt 0:03:25]} Qd7 {[%emt 0:05:19]} 33. Ke2 {[%emt 0:03:55]} g5 {[%emt 0:04:02]} 34. Nf5 {[%emt 0:01:53]} Ng6 {[%emt 0:00:24]} 35. g3 {[%emt 0:00:24]} Kc7 {[%emt 0:01:35]} 36. Nh2 {[%emt 0:04:49]} Ne7 {[%emt 0:01:02]} 37. Ne3 {[%emt 0:02:42]} f5 {[%emt 0:01:29]} 38. exf5 {[%emt 0:08:32]} Nxf5 {[%emt 0:00:22]} 39. Nhg4 {[%emt 0:00:28]} Rgf8 {[%emt 0:00:24]} 40. Rh1 {[%emt 0:04:09]} Nxe3 {[%emt 0:00:11]} 41. Nxe3 {[%emt 0:00:02]} Qf7 {[%emt 0:00:15]} 42. Rbf1 {[%emt 0:03:10]} 1/2-1/2

[Event "36th Indian-ch U13 Girls 2023"]
[Site "Secunderabad"]
[Date "2023.12.09"]
[Round "10.1"]
[White "Akshaya Sathi"]
[Black "Shreya G Hipparagi"]
[Result "1-0"]
[ECO "C41"]
[WhiteElo "1542"]
[BlackElo "1576"]
[Annotator "NA RC"]
[PlyCount "83"]
[EventDate "2023.12.04"]
[EventType "swiss"]
[EventCountry "IND"]
[SourceTitle "playchess.com"]
[Source "ChessBase"]
[SourceQuality "1"]
[TimeControl "5400+30"]

1. e4 {[%emt 0:00:29]} e5 {[%emt 0:00:05]} 2. Nf3 {[%emt 0:00:25]} d6 {[%emt 0:00:06]} 3. d4 {[%emt 0:00:08]} exd4 {[%emt 0:00:05]} 4. Qxd4 {[%emt 0:00:16]} Nf6 {[%emt 0:00:09]} 5. Nc3 {[%emt 0:00:31]} Be7 {[%emt 0:00:17]} 6. Bg5 {[%emt 1:31:41]} O-O {[%emt 0:00:59]} 7. O-O-O {[%emt 0:00:00]} Re8 {[%emt 0:01:39]} 8. e5 {[%emt 0:00:00]} dxe5 {[%emt 0:00:36]} 9. Qh4 {[%emt 0:00:00]} Bd6 {[%emt 0:11:59]} 10. Ne4 {[%emt 0:00:00]} Nbd7 {[%emt 0:00:12]} 11. Bb5 {[%emt 0:00:00]} Re6 {[%emt 0:00:56]} 12. Bc4 {[%emt 0:00:00]} Re8 {[%emt 0:01:10]} 13. Bb5 {[%emt 0:00:00]} Re6 {[%emt 0:00:09]} 14. Bxf6 {[%emt 0:00:00]} gxf6 {[%emt 0:18:35]} 15. Bc4 {[%emt 0:00:00]} Re8 {[%emt 0:01:18]} 16. Nxd6 {[%emt 0:00:00]} cxd6 {[%emt 0:00:07]} 17. Rxd6 {[%emt 0:00:00]} Qe7 {[%emt 0:00:24]} 18. Rhd1 {[%emt 0:00:00]} Kh8 {[%emt 0:03:10]} 19. Bb5 {[%emt 0:00:00]} Rd8 {[%emt 0:03:10]} 20. Nxe5 {[%emt 0:00:00]} Qxe5 {[%emt 0:02:28]} 21. Bxd7 {[%emt 0:00:00]} Rxd7 {[%emt 0:04:33]} 22. Rxd7 {[%emt 0:00:00]} Bxd7 {[%emt 0:00:03]} 23. Rxd7 {[%emt 0:00:00]} Qe6 {[%emt 0:00:18]} 24. Rd1 {[%emt 0:00:00]} Rc8 {[%emt 0:02:10]} 25. Qh3 {[%emt 0:00:00]} Qxh3 {[%emt 0:07:49]} 26. gxh3 {[%emt 0:00:00]} Rc7 {[%emt 0:00:10]} 27. Kd2 {[%emt 0:00:00]} Kg7 {[%emt 0:00:07]} 28. c3 {[%emt 0:00:00]} Kg6 {[%emt 0:00:13]} 29. Ke3 {[%emt 0:00:00]} Kg5 {[%emt 0:01:22]} 30. Rd5+ {[%emt 0:00:00]} Kh4 {[%emt 0:01:48]} 31. Kf3 {[%emt 0:00:00]} Re7 {[%emt 0:00:17]} 32. c4 {[%emt 0:00:00]} Rc7 {[%emt 0:01:05]} 33. b3 {[%emt 0:00:00]} b6 {[%emt 0:00:19]} 34. Kg2 {[%emt 0:14:00]} h5 {[%emt 0:01:27]} 35. Rd4+ {[%emt 0:00:00]} Kg5 {[%emt 0:00:07]} 36. Kf3 {[%emt 0:00:00]} h4 {[%emt 0:02:40]} 37. Ke3 {[%emt 0:00:00]} f5 {[%emt 0:00:46]} 38. Kd3 {[%emt 0:00:00]} Re7 {[%emt 0:00:26]} 39. b4 {[%emt 0:00:00]} Re1 {[%emt 0:01:02]} 40. c5 {[%emt 0:00:00]} bxc5 {[%emt 0:00:10]} 41. bxc5 {[%emt 0:00:00]} Rd1+ {[%emt 0:00:32]} 42. Kc4 {[%emt 0:00:00]} 1-0

[Event "36th Indian-ch U13 Girls 2023"]
[Site "Secunderabad"]
[Date "2023.12.09"]
[Round "10.2"]
[White "Aadya Gupta"]
[Black "Kirthika B"]
[Result "1/2-1/2"]
[ECO "E83"]
[WhiteElo "1460"]
[BlackElo "1605"]
[Annotator "NA RC"]
[PlyCount "61"]
[EventDate "2023.12.04"]
[EventType "swiss"]
[EventCountry "IND"]
[SourceTitle "playchess.com"]
[Source "ChessBase"]
[SourceQuality "1"]
[TimeControl "5400+30"]

1. d4 {[%emt 0:00:02]} Nf6 {[%emt 0:00:07]} 2. c4 {[%emt 0:00:03]} g6 {[%emt 0:00:03]} 3. Nc3 {[%emt 0:00:04]} Bg7 {[%emt 0:00:04]} 4. e4 {[%emt 0:00:04]} d6 {[%emt 0:00:02]} 5. f3 {[%emt 0:00:06]} O-O {[%emt 0:00:06]} 6. Be3 {[%emt 0:00:06]} Nc6 {[%emt 0:00:08]} 7. Nge2 {[%emt 0:00:26]} a6 {[%emt 0:00:12]} 8. Nc1 {[%emt 0:00:54]} Bd7 {[%emt 0:00:53]} 9. Qd2 {[%emt 0:01:20]} Na5 {[%emt 0:00:43]} 10. Be2 {[%emt 0:03:34]} e5 {[%emt 0:04:10]} 11. d5 {[%emt 0:00:42]} b6 {[%emt 0:00:42]} 12. O-O {[%emt 0:09:41]} Nh5 {[%emt 0:01:53]} 13. b4 {[%emt 0:01:03]} Nb7 {[%emt 0:00:09]} 14. Nd3 {[%emt 0:03:15]} Qe7 {[%emt 0:06:19]} 15. Rac1 {[%emt 0:04:14]} f5 {[%emt 0:06:26]} 16. exf5 {[%emt 0:04:03]} Bxf5 {[%emt 0:01:45]} 17. Bg5 {[%emt 0:03:12]} Bf6 {[%emt 0:02:42]} 18. Bxf6 {[%emt 0:02:14]} Nxf6 {[%emt 0:05:24]} 19. Nf2 {[%emt 0:06:04]} Nd8 {[%emt 0:09:16]} 20. Nce4 {[%emt 0:04:20]} Nxe4 {[%emt 0:03:43]} 21. fxe4 {[%emt 0:01:49]} Bd7 {[%emt 0:00:10]} 22. Ng4 {[%emt 0:04:34]} Bxg4 {[%emt 0:05:19]} 23. Bxg4 {[%emt 0:00:02]} Nf7 {[%emt 0:01:30]} 24. Be6 {[%emt 0:01:15]} Kg7 {[%emt 0:00:37]} 25. Rxf7+ {[%emt 0:03:01]} Rxf7 {[%emt 0:00:13]} 26. Bxf7 {[%emt 0:00:02]} Qxf7 {[%emt 0:00:25]} 27. Rf1 {[%emt 0:04:27]} Qe7 {[%emt 0:00:19]} 28. Qf2 {[%emt 0:02:12]} a5 {[%emt 0:01:58]} 29. b5 {[%emt 0:00:18]} Rb8 {[%emt 0:00:12]} 30. a4 {[%emt 0:00:51]} Ra8 {[%emt 0:00:17]} 31. Qf3 {[%emt 0:00:44]} 1/2-1/2

[Event "36th Indian-ch U13 Girls 2023"]
[Site "Secunderabad"]
[Date "2023.12.09"]
[Round "10.3"]
[White "Shanmathi Sree S"]
[Black "Saparya Ghosh"]
[Result "1-0"]
[ECO "B33"]
[WhiteElo "1420"]
[BlackElo "1662"]
[Annotator "NA RC"]
[PlyCount "73"]
[EventDate "2023.12.04"]
[EventType "swiss"]
[EventCountry "IND"]
[SourceTitle "playchess.com"]
[Source "ChessBase"]
[SourceQuality "1"]
[TimeControl "5400+30"]

1. e4 {[%emt 0:01:28]} c5 {[%emt 0:00:07]} 2. Nf3 {[%emt 0:00:47]} Nc6 {[%emt 0:00:05]} 3. d4 {[%emt 0:00:21]} cxd4 {[%emt 0:00:05]} 4. Nxd4 {[%emt 0:00:06]} Nf6 {[%emt 0:00:06]} 5. Nc3 {[%emt 0:01:07]} e5 {[%emt 0:00:06]} 6. Ndb5 {[%emt 0:00:54]} d6 {[%emt 0:00:05]} 7. Be3 {[%emt 0:07:42]} Be7 {[%emt 0:04:42]} 8. Be2 {[%emt 0:03:50]} O-O {[%emt 0:03:19]} 9. O-O {[%emt 0:02:32]} a6 {[%emt 0:07:19]} 10. Na3 {[%emt 0:00:16]} b5 {[%emt 0:00:11]} 11. Nd5 {[%emt 0:02:11]} Rb8 {[%emt 0:07:01]} 12. f3 {[%emt 0:03:05]} Bb7 {[%emt 0:11:05]} 13. c4 {[%emt 0:12:12]} b4 {[%emt 0:18:26]} 14. Nc2 {[%emt 0:01:22]} Bc8 {[%emt 0:01:34]} 15. Nxe7+ {[%emt 0:02:16]} Qxe7 {[%emt 0:01:58]} 16. b3 {[%emt 0:00:41]} Ne8 {[%emt 0:04:23]} 17. Bf2 {[%emt 0:07:12]} Nc7 {[%emt 0:01:27]} 18. Qd2 {[%emt 0:01:38]} f5 {[%emt 0:05:42]} 19. Rad1 {[%emt 0:01:49]} Rd8 {[%emt 0:04:14]} 20. Ne3 {[%emt 0:13:19]} Nd4 {[%emt 0:03:55]} 21. Bd3 {[%emt 0:02:19]} Qg5 {[%emt 0:05:02]} 22. Kh1 {[%emt 0:01:38]} Nce6 {[%emt 0:14:42]} 23. Nxf5 {[%emt 0:10:03]} Qxd2 {[%emt 0:05:53]} 24. Rxd2 {[%emt 0:00:23]} Nxf5 {[%emt 0:01:03]} 25. exf5 {[%emt 0:00:06]} Nd4 {[%emt 0:00:00]} 26. Bxd4 {[%emt 0:00:54]} exd4 {[%emt 0:00:00]} 27. Be4 {[%emt 0:00:40]} Rf8 {[%emt 0:00:56]} 28. g4 {[%emt 0:02:03]} g6 {[%emt 0:00:32]} 29. fxg6 {[%emt 0:01:37]} Bxg4 {[%emt 0:00:28]} 30. g7 {[%emt 0:02:39]} Rf4 {[%emt 0:00:32]} 31. Bd5+ {[%emt 0:00:33]} Kxg7 {[%emt 0:00:10]} 32. Rg1 {[%emt 0:00:08]} h5 {[%emt 0:00:28]} 33. fxg4 {[%emt 0:00:20]} hxg4 {[%emt 0:00:04]} 34. Rdg2 {[%emt 0:00:16]} g3 {[%emt 0:01:12]} 35. Rxg3+ {[%emt 0:00:05]} Kf6 {[%emt 0:00:06]} 36. Rg6+ {[%emt 0:00:07]} Ke7 {[%emt 0:00:08]} 37. Re1+ {[%emt 0:03:03]} 1-0